[Event "Titled Tuesday Blitz January 10 Early 2023"]
[White "Muzzi, Eduardo"]
[Black "Souza, Gustavo Horokoski De"]
[WhiteFideId "3001253"]
[BlackFideId "2146584"]
[WhiteElo "1917"]
[BlackElo "1943"]
[Result "1-0"]
[Round "07"]
[TimeControl "180+2"]
[Date "2023.01.10"]
[WhiteClock "0:01:14"]
[BlackClock "0:00:01"]

1. e4 {[%clk 0:03:00]}  e6 {[%clk 0:02:38]} 2. d4 {[%clk 0:03:00]}  d5 {[%clk 0:02:32]} 3. e5 {[%clk 0:03:00]}  c5 {[%clk 0:02:32]} 4. Nf3 {[%clk 0:03:00]}  Nc6 {[%clk 0:02:32]} 5. Bd3 {[%clk 0:02:59]}  cxd4 {[%clk 0:02:29]} 6. O-O {[%clk 0:02:59]}  Nge7 {[%clk 0:02:26]} 7. Bf4 {[%clk 0:02:58]}  Ng6 {[%clk 0:02:25]} 8. Bg3 {[%clk 0:02:59]}  Be7 {[%clk 0:02:24]} 9. Re1 {[%clk 0:02:58]}  O-O {[%clk 0:02:23]} 10. Nbd2 {[%clk 0:02:58]}  Bd7 {[%clk 0:02:05]} 11. a3 {[%clk 0:02:51]}  Nh4 {[%clk 0:01:59]} 12. Nxh4 {[%clk 0:02:39]}  Bxh4 {[%clk 0:02:00]} 13. Bxh7+ {[%clk 0:02:38]}  Kxh7 {[%clk 0:01:47]} 14. Qh5+ {[%clk 0:02:36]}  Kg8 {[%clk 0:01:47]} 15. Bxh4 {[%clk 0:02:36]}  Qb6 {[%clk 0:01:43]} 16. Nf3 {[%clk 0:02:36]}  f6 {[%clk 0:00:48]} 17. exf6 {[%clk 0:02:27]}  Be8 {[%clk 0:00:47]} 18. Qg4 {[%clk 0:02:23]}  Rf7 {[%clk 0:00:47]} 19. Rxe6 {[%clk 0:02:16]}  Bd7 {[%clk 0:00:21]} 20. Rae1 {[%clk 0:01:54]}  Bxe6 {[%clk 0:00:16]} 21. Qxe6 {[%clk 0:01:52]}  Qc7 {[%clk 0:00:13]} 22. Ng5 {[%clk 0:01:51]}  gxf6 {[%clk 0:00:09]} 23. Nxf7 {[%clk 0:01:49]}  Qxf7 {[%clk 0:00:09]} 24. Qg4+ {[%clk 0:01:41]}  Kf8 {[%clk 0:00:05]} 25. Re6 {[%clk 0:01:38]}  f5 {[%clk 0:00:02]} 26. Qe2 {[%clk 0:01:28]}  Re8 {[%clk 0:00:02]} 27. Rxe8+ {[%clk 0:01:26]}  Qxe8 {[%clk 0:00:03]} 28. Qd2 {[%clk 0:01:22]}  Qe4 {[%clk 0:00:02]} 29. Bg3 {[%clk 0:01:20]}  Kf7 {[%clk 0:00:01]} 30. h4 {[%clk 0:01:15]}  Kg6 {[%clk 0:00:01]} 31. Qg5+ {[%clk 0:01:15]}  Kf7 {[%clk 0:00:01]} 32. h5 {[%clk 0:01:14]} 1-0


[Site "https://www.chess.com"]

[Event "Titled Tuesday Blitz January 10 Early 2023"]
[White "Andreikin, Dmitry"]
[Black "Chigaev, Maksim"]
[WhiteFideId "4158814"]
[BlackFideId "4108116"]
[WhiteElo "2729"]
[BlackElo "2628"]
[Result "1-0"]
[Round "08"]
[TimeControl "180+2"]
[Date "2023.01.10"]
[WhiteClock "0:00:02"]
[BlackClock "0:00:03"]

1. Nf3 {[%clk 0:02:59]}  Nf6 {[%clk 0:03:00]} 2. c4 {[%clk 0:02:59]}  g6 {[%clk 0:03:01]} 3. b4 {[%clk 0:02:59]}  Bg7 {[%clk 0:02:58]} 4. Bb2 {[%clk 0:03:00]}  O-O {[%clk 0:02:59]} 5. e3 {[%clk 0:02:59]}  d6 {[%clk 0:02:52]} 6. Be2 {[%clk 0:02:59]}  e5 {[%clk 0:02:49]} 7. d3 {[%clk 0:02:59]}  Re8 {[%clk 0:02:48]} 8. O-O {[%clk 0:02:59]}  a5 {[%clk 0:02:34]} 9. b5 {[%clk 0:02:57]}  e4 {[%clk 0:02:33]} 10. dxe4 {[%clk 0:02:57]}  Nxe4 {[%clk 0:02:34]} 11. Bxg7 {[%clk 0:02:55]}  Kxg7 {[%clk 0:02:35]} 12. Nfd2 {[%clk 0:02:51]}  Nc5 {[%clk 0:02:28]} 13. Nc3 {[%clk 0:02:50]}  Nbd7 {[%clk 0:02:28]} 14. Nb3 {[%clk 0:02:42]}  Nb6 {[%clk 0:02:16]} 15. Qd4+ {[%clk 0:02:28]}  Qf6 {[%clk 0:02:16]} 16. Rac1 {[%clk 0:02:08]}  Qxd4 {[%clk 0:02:02]} 17. exd4 {[%clk 0:02:07]}  Nxb3 {[%clk 0:01:18]} 18. axb3 {[%clk 0:02:07]}  a4 {[%clk 0:01:17]} 19. c5 {[%clk 0:02:05]}  dxc5 {[%clk 0:01:14]} 20. dxc5 {[%clk 0:02:06]}  Nd7 {[%clk 0:01:13]} 21. bxa4 {[%clk 0:01:53]}  Nxc5 {[%clk 0:01:11]} 22. Bf3 {[%clk 0:01:54]}  Nxa4 {[%clk 0:01:01]} 23. Nd5 {[%clk 0:01:44]}  Re5 {[%clk 0:00:50]} 24. Rxc7 {[%clk 0:01:35]}  Rb8 {[%clk 0:00:44]} 25. Rfc1 {[%clk 0:01:24]}  Be6 {[%clk 0:00:42]} 26. Nf4 {[%clk 0:01:24]}  Bb3 {[%clk 0:00:40]} 27. h4 {[%clk 0:01:21]}  Rxb5 {[%clk 0:00:35]} 28. h5 {[%clk 0:01:03]}  Re8 {[%clk 0:00:16]} 29. Bxb7 {[%clk 0:01:02]}  Rbe5 {[%clk 0:00:16]} 30. Kh2 {[%clk 0:00:50]}  R8e7 {[%clk 0:00:16]} 31. Bf3 {[%clk 0:00:40]}  Rxc7 {[%clk 0:00:13]} 32. Rxc7 {[%clk 0:00:41]}  Nc5 {[%clk 0:00:13]} 33. Bd5 {[%clk 0:00:38]}  g5 {[%clk 0:00:06]} 34. Rxf7+ {[%clk 0:00:21]}  Kh6 {[%clk 0:00:07]} 35. Rf6+ {[%clk 0:00:20]}  Kg7 {[%clk 0:00:07]} 36. Rf7+ {[%clk 0:00:17]}  Kh6 {[%clk 0:00:08]} 37. Bxb3 {[%clk 0:00:15]}  Nxb3 {[%clk 0:00:06]} 38. Nd3 {[%clk 0:00:07]}  Rd5 {[%clk 0:00:04]} 39. Nb4 {[%clk 0:00:05]}  Rb5 {[%clk 0:00:04]} 40. Nc6 {[%clk 0:00:04]}  Kxh5 {[%clk 0:00:05]} 41. Rxh7+ {[%clk 0:00:04]}  Kg6 {[%clk 0:00:06]} 42. Rc7 {[%clk 0:00:04]}  Rc5 {[%clk 0:00:05]} 43. Ne7+ {[%clk 0:00:03]}  Kf6 {[%clk 0:00:04]} 44. Ng8+ {[%clk 0:00:03]}  Kg6 {[%clk 0:00:04]} 45. Rb7 {[%clk 0:00:03]}  Nd4 {[%clk 0:00:04]} 46. f3 {[%clk 0:00:03]}  Rc2 {[%clk 0:00:04]} 47. Ne7+ {[%clk 0:00:02]}  Kh6 {[%clk 0:00:04]} 48. Kg3 {[%clk 0:00:01]}  Re2 {[%clk 0:00:03]} 49. Nd5 {[%clk 0:00:01]}  Nf5+ {[%clk 0:00:03]} 50. Kh3 {[%clk 0:00:01]}  Nd4 {[%clk 0:00:03]} 51. Rb6+ {[%clk 0:00:02]}  Kg7 {[%clk 0:00:03]} 52. Nc3 {[%clk 0:00:02]}  Re1 {[%clk 0:00:03]} 53. Ne4 {[%clk 0:00:02]}  Rh1+ {[%clk 0:00:02]} 54. Kg4 {[%clk 0:00:01]}  Rg1 {[%clk 0:00:03]} 55. g3 {[%clk 0:00:02]}  Rf1 {[%clk 0:00:02]} 56. Nxg5 {[%clk 0:00:02]}  Kf8 {[%clk 0:00:02]} 57. Ne6+ {[%clk 0:00:01]}  Nxe6 {[%clk 0:00:03]} 58. Rxe6 {[%clk 0:00:02]} 1-0


[Site "https://www.chess.com"]

[Event "Titled Tuesday Blitz January 10 Early 2023"]
[White "Demchenko, Anton"]
[Black "Sarana, Alexey"]
[WhiteFideId "4160258"]
[BlackFideId "24133795"]
[WhiteElo "2623"]
[BlackElo "2685"]
[Result "1/2-1/2"]
[Round "08"]
[TimeControl "180+2"]
[Date "2023.01.10"]
[WhiteClock "0:00:35"]
[BlackClock "0:02:15"]

1. e4 {[%clk 0:02:59]}  e5 {[%clk 0:02:58]} 2. Nf3 {[%clk 0:03:00]}  Nc6 {[%clk 0:02:59]} 3. Bc4 {[%clk 0:02:59]}  Nf6 {[%clk 0:02:59]} 4. d3 {[%clk 0:03:00]}  d5 {[%clk 0:02:59]} 5. exd5 {[%clk 0:03:00]}  Nxd5 {[%clk 0:03:00]} 6. O-O {[%clk 0:03:00]}  Bg4 {[%clk 0:03:00]} 7. h3 {[%clk 0:02:57]}  Bh5 {[%clk 0:03:00]} 8. Re1 {[%clk 0:02:52]}  Qd6 {[%clk 0:03:01]} 9. Nc3 {[%clk 0:02:36]}  Nxc3 {[%clk 0:03:00]} 10. bxc3 {[%clk 0:02:37]}  O-O-O {[%clk 0:03:00]} 11. Qe2 {[%clk 0:02:34]}  f5 {[%clk 0:02:51]} 12. Qe3 {[%clk 0:02:32]}  f4 {[%clk 0:02:43]} 13. Qe4 {[%clk 0:02:32]}  Bg6 {[%clk 0:02:43]} 14. Qe2 {[%clk 0:02:33]}  Bh5 {[%clk 0:02:42]} 15. Qe4 {[%clk 0:02:32]}  Re8 {[%clk 0:02:30]} 16. Qf5+ {[%clk 0:02:21]}  Kb8 {[%clk 0:02:21]} 17. Qxh5 {[%clk 0:02:21]}  g6 {[%clk 0:02:21]} 18. Qh4 {[%clk 0:00:51]}  Be7 {[%clk 0:02:20]} 19. Qh6 {[%clk 0:00:51]}  Bf8 {[%clk 0:02:21]} 20. Qh4 {[%clk 0:00:38]}  Be7 {[%clk 0:02:21]} 21. Qh6 {[%clk 0:00:37]}  Bf8 {[%clk 0:02:15]} 22. Qh4 {[%clk 0:00:35]} 1/2-1/2


[Site "https://www.chess.com"]

[Event "Titled Tuesday Blitz January 10 Early 2023"]
[White "Urazayev, Arystanbek"]
[Black "Salem, A.R. Saleh"]
[WhiteFideId "13709810"]
[BlackFideId "9301348"]
[WhiteElo "2460"]
[BlackElo "2677"]
[Result "0-1"]
[Round "08"]
[TimeControl "180+2"]
[Date "2023.01.10"]
[WhiteClock "0:00:02"]
[BlackClock "0:00:53"]

1. e4 {[%clk 0:03:00]}  c5 {[%clk 0:02:57]} 2. Nf3 {[%clk 0:03:01]}  e6 {[%clk 0:02:57]} 3. d4 {[%clk 0:03:01]}  cxd4 {[%clk 0:02:58]} 4. Nxd4 {[%clk 0:03:02]}  Nc6 {[%clk 0:02:59]} 5. Be2 {[%clk 0:03:02]}  d6 {[%clk 0:02:56]} 6. c4 {[%clk 0:03:02]}  Nf6 {[%clk 0:02:55]} 7. Nc3 {[%clk 0:03:02]}  Be7 {[%clk 0:02:54]} 8. Be3 {[%clk 0:03:02]}  O-O {[%clk 0:02:54]} 9. O-O {[%clk 0:03:02]}  Bd7 {[%clk 0:02:50]} 10. Rc1 {[%clk 0:03:03]}  a6 {[%clk 0:02:48]} 11. b3 {[%clk 0:02:53]}  Rc8 {[%clk 0:02:46]} 12. Qd2 {[%clk 0:02:53]}  Nxd4 {[%clk 0:02:42]} 13. Qxd4 {[%clk 0:02:53]}  Qa5 {[%clk 0:02:37]} 14. Qb6 {[%clk 0:02:39]}  Qxb6 {[%clk 0:02:35]} 15. Bxb6 {[%clk 0:02:40]}  Bd8 {[%clk 0:02:35]} 16. Be3 {[%clk 0:02:33]}  Ba5 {[%clk 0:02:30]} 17. f3 {[%clk 0:02:07]}  Rfd8 {[%clk 0:02:28]} 18. Rfd1 {[%clk 0:02:00]}  Bc6 {[%clk 0:02:27]} 19. a4 {[%clk 0:01:49]}  h5 {[%clk 0:02:27]} 20. h4 {[%clk 0:01:48]}  Kf8 {[%clk 0:02:26]} 21. Na2 {[%clk 0:01:39]}  Bc7 {[%clk 0:02:10]} 22. Nb4 {[%clk 0:01:38]}  Be8 {[%clk 0:02:10]} 23. Bd4 {[%clk 0:01:29]}  Nd7 {[%clk 0:02:07]} 24. Nd3 {[%clk 0:01:28]}  Bb6 {[%clk 0:02:02]} 25. Bxb6 {[%clk 0:01:23]}  Nxb6 {[%clk 0:02:03]} 26. Nf4 {[%clk 0:01:18]}  g6 {[%clk 0:02:00]} 27. a5 {[%clk 0:01:16]}  Na8 {[%clk 0:02:00]} 28. b4 {[%clk 0:01:13]}  Ke7 {[%clk 0:02:00]} 29. Kf2 {[%clk 0:01:12]}  Nc7 {[%clk 0:01:59]} 30. g4 {[%clk 0:01:07]}  hxg4 {[%clk 0:01:58]} 31. fxg4 {[%clk 0:01:08]}  Bc6 {[%clk 0:01:58]} 32. Ke3 {[%clk 0:01:07]}  Rh8 {[%clk 0:01:58]} 33. h5 {[%clk 0:01:07]}  gxh5 {[%clk 0:01:56]} 34. gxh5 {[%clk 0:01:07]}  Ne8 {[%clk 0:01:55]} 35. b5 {[%clk 0:01:05]}  Bd7 {[%clk 0:01:55]} 36. bxa6 {[%clk 0:01:00]}  bxa6 {[%clk 0:01:56]} 37. c5 {[%clk 0:00:59]}  dxc5 {[%clk 0:01:53]} 38. Nd3 {[%clk 0:00:33]}  Bb5 {[%clk 0:01:35]} 39. Ne5 {[%clk 0:00:13]}  Nf6 {[%clk 0:01:26]} 40. Bf3 {[%clk 0:00:05]}  Nxh5 {[%clk 0:01:16]} 41. Rh1 {[%clk 0:00:04]}  Nf6 {[%clk 0:01:17]} 42. Rxh8 {[%clk 0:00:04]}  Rxh8 {[%clk 0:01:18]} 43. Rxc5 {[%clk 0:00:05]}  Rh2 {[%clk 0:01:01]} 44. Rc1 {[%clk 0:00:04]}  Ra2 {[%clk 0:01:00]} 45. Nc4 {[%clk 0:00:01]}  Nd7 {[%clk 0:00:53]} 46. e5 {[%clk 0:00:01]}  Bxc4 {[%clk 0:00:53]} 47. Rxc4 {[%clk 0:00:02]}  Ra3+ {[%clk 0:00:52]} 48. Kf2 {[%clk 0:00:02]}  Rxf3+ {[%clk 0:00:53]} 0-1


[Site "https://www.chess.com"]

[Event "Titled Tuesday Blitz January 10 Early 2023"]
[White "Fernandez Guillen, Ernesto J."]
[Black "Bachmann, Axel"]
[WhiteFideId "3512428"]
[BlackFideId "3700488"]
[WhiteElo "2477"]
[BlackElo "2604"]
[Result "0-1"]
[Round "08"]
[TimeControl "180+2"]
[Date "2023.01.10"]
[WhiteClock "0:00:02"]
[BlackClock "0:00:04"]

1. e4 {[%clk 0:03:00]}  c6 {[%clk 0:02:57]} 2. d4 {[%clk 0:02:45]}  d5 {[%clk 0:02:58]} 3. e5 {[%clk 0:02:45]}  c5 {[%clk 0:02:57]} 4. dxc5 {[%clk 0:02:46]}  e6 {[%clk 0:02:44]} 5. a3 {[%clk 0:02:39]}  Bxc5 {[%clk 0:02:42]} 6. Qg4 {[%clk 0:02:34]}  Kf8 {[%clk 0:02:26]} 7. b4 {[%clk 0:02:21]}  Bb6 {[%clk 0:02:25]} 8. Nf3 {[%clk 0:02:17]}  Ne7 {[%clk 0:02:18]} 9. Bd3 {[%clk 0:02:17]}  a5 {[%clk 0:02:11]} 10. Bb2 {[%clk 0:01:48]}  axb4 {[%clk 0:02:04]} 11. axb4 {[%clk 0:01:49]}  Rxa1 {[%clk 0:02:04]} 12. Bxa1 {[%clk 0:01:50]}  Nbc6 {[%clk 0:01:47]} 13. h4 {[%clk 0:01:44]}  Nxb4 {[%clk 0:01:39]} 14. O-O {[%clk 0:01:42]}  Nxd3 {[%clk 0:01:38]} 15. cxd3 {[%clk 0:01:43]}  Nf5 {[%clk 0:01:17]} 16. Nbd2 {[%clk 0:00:51]}  Bc5 {[%clk 0:01:13]} 17. h5 {[%clk 0:00:47]}  b6 {[%clk 0:01:08]} 18. d4 {[%clk 0:00:44]}  Be7 {[%clk 0:01:04]} 19. Rc1 {[%clk 0:00:43]}  Ba6 {[%clk 0:00:59]} 20. Bb2 {[%clk 0:00:42]}  Rg8 {[%clk 0:00:41]} 21. Ra1 {[%clk 0:00:37]}  Bb5 {[%clk 0:00:39]} 22. Ba3 {[%clk 0:00:37]}  h6 {[%clk 0:00:33]} 23. Qf4 {[%clk 0:00:24]}  g5 {[%clk 0:00:31]} 24. Qg4 {[%clk 0:00:19]}  Bxa3 {[%clk 0:00:24]} 25. Rxa3 {[%clk 0:00:18]}  Qc7 {[%clk 0:00:24]} 26. Rb3 {[%clk 0:00:15]}  Bc4 {[%clk 0:00:22]} 27. Rb1 {[%clk 0:00:12]}  b5 {[%clk 0:00:22]} 28. Kh2 {[%clk 0:00:11]}  Qa5 {[%clk 0:00:17]} 29. Nxc4 {[%clk 0:00:10]}  dxc4 {[%clk 0:00:08]} 30. d5 {[%clk 0:00:09]}  Qb6 {[%clk 0:00:06]} 31. d6 {[%clk 0:00:04]}  c3 {[%clk 0:00:03]} 32. Qb4 {[%clk 0:00:03]}  Qxf2 {[%clk 0:00:03]} 33. d7+ {[%clk 0:00:02]}  Kg7 {[%clk 0:00:04]} 34. Qxc3 {[%clk 0:00:01]}  Ne3 {[%clk 0:00:04]} 35. Qe1 {[%clk 0:00:02]}  Qxg2# {[%clk 0:00:04]} 0-1


[Site "https://www.chess.com"]

[Event "Titled Tuesday Blitz January 10 Early 2023"]
[White "Kravtsiv, Martyn"]
[Black "Koellner, Ruben Gideon"]
[WhiteFideId "14113147"]
[BlackFideId "12993093"]
[WhiteElo "2598"]
[BlackElo "2426"]
[Result "1-0"]
[Round "08"]
[TimeControl "180+2"]
[Date "2023.01.10"]
[WhiteClock "0:00:49"]
[BlackClock "0:00:11"]

1. e4 {[%clk 0:03:00]}  d6 {[%clk 0:03:00]} 2. d4 {[%clk 0:02:59]}  Nf6 {[%clk 0:02:57]} 3. Nc3 {[%clk 0:02:59]}  e5 {[%clk 0:02:54]} 4. Nf3 {[%clk 0:02:58]}  Nbd7 {[%clk 0:02:54]} 5. Bc4 {[%clk 0:02:58]}  Be7 {[%clk 0:02:54]} 6. a4 {[%clk 0:02:54]}  c6 {[%clk 0:02:54]} 7. O-O {[%clk 0:02:50]}  h6 {[%clk 0:02:42]} 8. Re1 {[%clk 0:02:44]}  Qc7 {[%clk 0:02:42]} 9. b3 {[%clk 0:02:42]}  Nf8 {[%clk 0:02:40]} 10. d5 {[%clk 0:02:41]}  Ng6 {[%clk 0:02:39]} 11. h3 {[%clk 0:02:39]}  O-O {[%clk 0:02:33]} 12. Qe2 {[%clk 0:02:34]}  a5 {[%clk 0:02:20]} 13. Be3 {[%clk 0:02:18]}  Nh5 {[%clk 0:02:10]} 14. Kh2 {[%clk 0:02:00]}  Nhf4 {[%clk 0:02:09]} 15. Qf1 {[%clk 0:02:00]}  Kh7 {[%clk 0:02:00]} 16. Ng1 {[%clk 0:01:37]}  f5 {[%clk 0:01:56]} 17. Bxf4 {[%clk 0:01:32]}  exf4 {[%clk 0:01:28]} 18. Rad1 {[%clk 0:01:28]}  Bf6 {[%clk 0:01:23]} 19. exf5 {[%clk 0:01:27]}  Bxf5 {[%clk 0:01:24]} 20. Ne4 {[%clk 0:01:27]}  Be5 {[%clk 0:01:13]} 21. Nf3 {[%clk 0:01:26]}  Rad8 {[%clk 0:01:11]} 22. Re2 {[%clk 0:01:20]}  Rfe8 {[%clk 0:00:36]} 23. Qe1 {[%clk 0:01:20]}  Re7 {[%clk 0:00:33]} 24. Bd3 {[%clk 0:01:15]}  Kh8 {[%clk 0:00:20]} 25. dxc6 {[%clk 0:01:08]}  bxc6 {[%clk 0:00:19]} 26. Nc5 {[%clk 0:01:06]}  Bxd3 {[%clk 0:00:16]} 27. Nxd3 {[%clk 0:01:07]}  Rde8 {[%clk 0:00:15]} 28. Qd2 {[%clk 0:00:58]}  d5 {[%clk 0:00:13]} 29. Rde1 {[%clk 0:00:58]}  Bf6 {[%clk 0:00:12]} 30. Rxe7 {[%clk 0:00:55]}  Rxe7 {[%clk 0:00:13]} 31. Rxe7 {[%clk 0:00:54]}  Bxe7 {[%clk 0:00:14]} 32. Qe1 {[%clk 0:00:53]}  Bf6 {[%clk 0:00:13]} 33. Qe6 {[%clk 0:00:53]}  Kh7 {[%clk 0:00:13]} 34. Qf5 {[%clk 0:00:52]}  Qd6 {[%clk 0:00:11]} 35. h4 {[%clk 0:00:49]} 1-0


[Site "https://www.chess.com"]

[Event "Titled Tuesday Blitz January 10 Early 2023"]
[White "Durarbayli, Vasif"]
[Black "Svane, Rasmus"]
[WhiteFideId "13402935"]
[BlackFideId "4657101"]
[WhiteElo "2627"]
[BlackElo "2623"]
[Result "0-1"]
[Round "08"]
[TimeControl "180+2"]
[Date "2023.01.10"]
[WhiteClock "0:00:02"]
[BlackClock "0:00:19"]

1. e4 {[%clk 0:03:00]}  c6 {[%clk 0:02:57]} 2. d4 {[%clk 0:03:00]}  d5 {[%clk 0:02:58]} 3. exd5 {[%clk 0:02:58]}  cxd5 {[%clk 0:02:59]} 4. c4 {[%clk 0:02:59]}  Nf6 {[%clk 0:02:59]} 5. Nc3 {[%clk 0:02:59]}  Nc6 {[%clk 0:02:59]} 6. Nf3 {[%clk 0:03:00]}  a6 {[%clk 0:02:59]} 7. cxd5 {[%clk 0:03:00]}  Nxd5 {[%clk 0:03:00]} 8. Bc4 {[%clk 0:03:01]}  Be6 {[%clk 0:03:00]} 9. Bb3 {[%clk 0:03:01]}  Na5 {[%clk 0:03:00]} 10. O-O {[%clk 0:02:57]}  Nxb3 {[%clk 0:02:59]} 11. axb3 {[%clk 0:02:58]}  g6 {[%clk 0:02:59]} 12. Ng5 {[%clk 0:02:45]}  Bc8 {[%clk 0:02:58]} 13. Qf3 {[%clk 0:02:33]}  Nf6 {[%clk 0:02:58]} 14. d5 {[%clk 0:02:28]}  Bg7 {[%clk 0:02:50]} 15. Re1 {[%clk 0:02:17]}  O-O {[%clk 0:02:49]} 16. Ra4 {[%clk 0:02:11]}  Bf5 {[%clk 0:02:05]} 17. Rh4 {[%clk 0:01:23]}  Rc8 {[%clk 0:02:04]} 18. g4 {[%clk 0:01:16]}  Bd7 {[%clk 0:02:02]} 19. Nce4 {[%clk 0:00:56]}  h6 {[%clk 0:01:58]} 20. Nh3 {[%clk 0:00:31]}  Nxe4 {[%clk 0:01:10]} 21. Qxe4 {[%clk 0:00:25]}  f5 {[%clk 0:01:06]} 22. gxf5 {[%clk 0:00:20]}  Bxf5 {[%clk 0:01:02]} 23. Qg2 {[%clk 0:00:21]}  e6 {[%clk 0:00:52]} 24. Rc4 {[%clk 0:00:08]}  Qxd5 {[%clk 0:00:50]} 25. Nf4 {[%clk 0:00:06]}  Qxg2+ {[%clk 0:00:45]} 26. Kxg2 {[%clk 0:00:07]}  b5 {[%clk 0:00:37]} 27. Rxc8 {[%clk 0:00:04]}  Rxc8 {[%clk 0:00:38]} 28. Bd2 {[%clk 0:00:02]}  Kf7 {[%clk 0:00:33]} 29. Bc3 {[%clk 0:00:01]}  Bxc3 {[%clk 0:00:33]} 30. bxc3 {[%clk 0:00:02]}  Rxc3 {[%clk 0:00:34]} 31. Ra1 {[%clk 0:00:02]}  Be4+ {[%clk 0:00:32]} 32. Kf1 {[%clk 0:00:01]}  Rxb3 {[%clk 0:00:33]} 33. Rxa6 {[%clk 0:00:01]}  Bf3 {[%clk 0:00:29]} 34. Ra7+ {[%clk 0:00:01]}  Kf6 {[%clk 0:00:28]} 35. Ke1 {[%clk 0:00:02]}  g5 {[%clk 0:00:28]} 36. Nh3 {[%clk 0:00:02]}  Bg4 {[%clk 0:00:19]} 0-1


[Site "https://www.chess.com"]

[Event "Titled Tuesday Blitz January 10 Early 2023"]
[White "Svidler, Peter"]
[Black "Cherniaiev, Tykhon"]
[WhiteFideId "4102142"]
[BlackFideId "14182360"]
[WhiteElo "2683"]
[BlackElo "2330"]
[Result "1-0"]
[Round "08"]
[TimeControl "180+2"]
[Date "2023.01.10"]
[WhiteClock "0:01:00"]
[BlackClock "0:00:11"]

1. e4 {[%clk 0:03:00]}  e5 {[%clk 0:02:59]} 2. Nf3 {[%clk 0:02:59]}  Nc6 {[%clk 0:02:59]} 3. Bb5 {[%clk 0:02:57]}  Nf6 {[%clk 0:02:59]} 4. d3 {[%clk 0:02:58]}  Bc5 {[%clk 0:02:59]} 5. c3 {[%clk 0:02:57]}  d5 {[%clk 0:02:52]} 6. exd5 {[%clk 0:02:56]}  Qxd5 {[%clk 0:02:52]} 7. Bc4 {[%clk 0:02:57]}  Qd6 {[%clk 0:02:50]} 8. Nbd2 {[%clk 0:02:58]}  O-O {[%clk 0:02:50]} 9. b4 {[%clk 0:02:52]}  Bb6 {[%clk 0:02:50]} 10. a4 {[%clk 0:02:52]}  a5 {[%clk 0:02:49]} 11. b5 {[%clk 0:02:50]}  Ne7 {[%clk 0:02:49]} 12. O-O {[%clk 0:02:39]}  Ng6 {[%clk 0:02:47]} 13. Ba3 {[%clk 0:02:18]}  Bc5 {[%clk 0:02:46]} 14. Bxc5 {[%clk 0:02:19]}  Qxc5 {[%clk 0:02:47]} 15. d4 {[%clk 0:02:19]}  exd4 {[%clk 0:02:45]} 16. cxd4 {[%clk 0:02:20]}  Qd6 {[%clk 0:02:41]} 17. Re1 {[%clk 0:02:20]}  Bg4 {[%clk 0:02:36]} 18. Qb3 {[%clk 0:02:19]}  Nf4 {[%clk 0:02:08]} 19. g3 {[%clk 0:02:10]}  Ne6 {[%clk 0:01:58]} 20. Ne5 {[%clk 0:01:37]}  Nxd4 {[%clk 0:01:44]} 21. Nxf7 {[%clk 0:01:34]}  Rxf7 {[%clk 0:01:42]} 22. Bxf7+ {[%clk 0:01:33]}  Kf8 {[%clk 0:01:36]} 23. Qc4 {[%clk 0:01:33]}  Ne2+ {[%clk 0:01:12]} 24. Rxe2 {[%clk 0:01:33]}  Bxe2 {[%clk 0:01:12]} 25. Qxe2 {[%clk 0:01:33]}  Kxf7 {[%clk 0:01:12]} 26. Nc4 {[%clk 0:01:33]}  Qe6 {[%clk 0:01:08]} 27. Ne5+ {[%clk 0:01:20]}  Kg8 {[%clk 0:01:07]} 28. Rc1 {[%clk 0:01:18]}  Re8 {[%clk 0:00:35]} 29. f4 {[%clk 0:01:18]}  Nd5 {[%clk 0:00:29]} 30. Qc4 {[%clk 0:01:12]}  c6 {[%clk 0:00:20]} 31. bxc6 {[%clk 0:01:10]}  bxc6 {[%clk 0:00:21]} 32. Qxc6 {[%clk 0:01:08]}  Qxc6 {[%clk 0:00:21]} 33. Rxc6 {[%clk 0:01:08]}  g5 {[%clk 0:00:20]} 34. Rc5 {[%clk 0:01:08]}  Nb6 {[%clk 0:00:10]} 35. Rxa5 {[%clk 0:01:06]}  gxf4 {[%clk 0:00:10]} 36. gxf4 {[%clk 0:01:06]}  Nd5 {[%clk 0:00:11]} 37. Rxd5 {[%clk 0:01:05]}  Ra8 {[%clk 0:00:11]} 38. a5 {[%clk 0:01:04]}  Rb8 {[%clk 0:00:11]} 39. Nc6 {[%clk 0:01:02]}  Rb2 {[%clk 0:00:11]} 40. a6 {[%clk 0:01:01]}  h5 {[%clk 0:00:10]} 41. a7 {[%clk 0:01:01]}  h4 {[%clk 0:00:10]} 42. a8=Q+ {[%clk 0:01:01]}  Kg7 {[%clk 0:00:11]} 43. Qa7+ {[%clk 0:01:01]}  Kg8 {[%clk 0:00:11]} 44. Rd8# {[%clk 0:01:00]} 1-0


[Site "https://www.chess.com"]

[Event "Titled Tuesday Blitz January 10 Early 2023"]
[White "Kamsky, Gata"]
[Black "Bryakin, Mikhail"]
[WhiteFideId "2000024"]
[BlackFideId "4165314"]
[WhiteElo "2665"]
[BlackElo "2455"]
[Result "1/2-1/2"]
[Round "08"]
[TimeControl "180+2"]
[Date "2023.01.10"]
[WhiteClock "0:00:22"]
[BlackClock "0:00:16"]

1. e4 {[%clk 0:03:00]}  d5 {[%clk 0:02:49]} 2. exd5 {[%clk 0:02:57]}  Qxd5 {[%clk 0:02:49]} 3. Nc3 {[%clk 0:02:55]}  Qe5+ {[%clk 0:02:50]} 4. Be2 {[%clk 0:02:48]}  Bg4 {[%clk 0:02:49]} 5. d4 {[%clk 0:02:48]}  Bxe2 {[%clk 0:02:48]} 6. Ngxe2 {[%clk 0:02:40]}  Qa5 {[%clk 0:02:48]} 7. d5 {[%clk 0:02:35]}  c6 {[%clk 0:02:41]} 8. O-O {[%clk 0:02:34]}  Nf6 {[%clk 0:02:38]} 9. Nf4 {[%clk 0:02:33]}  cxd5 {[%clk 0:02:36]} 10. Ncxd5 {[%clk 0:02:32]}  Nxd5 {[%clk 0:02:34]} 11. Qxd5 {[%clk 0:02:29]}  Qxd5 {[%clk 0:02:33]} 12. Nxd5 {[%clk 0:02:29]}  Na6 {[%clk 0:02:30]} 13. c4 {[%clk 0:02:20]}  e6 {[%clk 0:02:23]} 14. Nc3 {[%clk 0:02:18]}  Nc7 {[%clk 0:02:08]} 15. Bf4 {[%clk 0:02:16]}  O-O-O {[%clk 0:02:08]} 16. Rfd1 {[%clk 0:02:14]}  Be7 {[%clk 0:02:00]} 17. Kf1 {[%clk 0:01:33]}  Bf6 {[%clk 0:01:31]} 18. Rac1 {[%clk 0:00:56]}  Rxd1+ {[%clk 0:01:27]} 19. Nxd1 {[%clk 0:00:56]}  Rd8 {[%clk 0:01:19]} 20. Ke2 {[%clk 0:00:52]}  Na6 {[%clk 0:01:05]} 21. Be3 {[%clk 0:00:50]}  b6 {[%clk 0:01:04]} 22. Nc3 {[%clk 0:00:49]}  Bd4 {[%clk 0:00:56]} 23. Bxd4 {[%clk 0:00:48]}  Rxd4 {[%clk 0:00:57]} 24. Nb5 {[%clk 0:00:44]}  Rd7 {[%clk 0:00:57]} 25. Rd1 {[%clk 0:00:41]}  Rxd1 {[%clk 0:00:38]} 26. Kxd1 {[%clk 0:00:41]}  Nb4 {[%clk 0:00:39]} 27. Nxa7+ {[%clk 0:00:39]}  Kd7 {[%clk 0:00:27]} 28. Kd2 {[%clk 0:00:35]}  Nxa2 {[%clk 0:00:26]} 29. Nb5 {[%clk 0:00:35]}  Kc6 {[%clk 0:00:22]} 30. Nc3 {[%clk 0:00:31]}  Nb4 {[%clk 0:00:18]} 31. Ne4 {[%clk 0:00:31]}  h6 {[%clk 0:00:17]} 32. Kc3 {[%clk 0:00:31]}  Na2+ {[%clk 0:00:18]} 33. Kd4 {[%clk 0:00:28]}  f6 {[%clk 0:00:18]} 34. f4 {[%clk 0:00:27]}  Nb4 {[%clk 0:00:16]} 35. Kc3 {[%clk 0:00:27]}  Na2+ {[%clk 0:00:16]} 36. Kd4 {[%clk 0:00:27]}  Nb4 {[%clk 0:00:17]} 37. Kc3 {[%clk 0:00:22]}  Na2+ {[%clk 0:00:16]} 38. Kd4 {[%clk 0:00:22]} 1/2-1/2


[Site "https://www.chess.com"]